{"text_format":"2","workbook":"xlsx","n_sheets":11,"sheets":["Maanvaraiset pihat","Ruderaatit","Uusniityt","Liikenneväylien varsien kasv.","Pellot ja avoimet","Pensaikot","Ihmisen perust. kosteikot","Rakennetut vesialtaat","Teoll. viherympäristöt","SELITE KESKIARVO","_valinnat"],"not_rendered":{"charts":0,"images":0,"macros":0,"external_links":0,"defined_names":10,"comments":0,"pivot_tables":0},"unopened":[],"bounds":{"document_bytes":16777216,"sheet_cells":100000,"run_cost":"one","rows_first":2000,"rows_last":500,"rows_between":2000,"halvings":0,"cell_chars":16384,"cell_head_chars":4096},"cells_cut":0,"cells_raw":0,"read":"whole","date_system":"1900"}

{"sheet":"Maanvaraiset pihat","index":0,"n_rows":3,"n_cols":11,"rows_kept":3,"cut":false,"hidden":false,"merged":[]}
["Selitteet:","Rivilaskuri","Pinta-ala","1: 30–70%; 0,4: 10–<30%; 0,1: 0%","1: Eri-ikäistä, osin lajityypillisen vanhaa; 0,1: ei puustoa / vain vieraspuu-nuoret","1: Viisi piirrettä; 0,4–0,5: 1–2 piirrettä; 0,1: ei","1: monikerroksellinen (≥4); 0,8: 3 kerrosta, 0,5: 2 kerrosta; 0,1: 1 kerros","1: järeää & monilajista runsaasti; 0,3: niukasti; 0,1: ei","1: ei haitallisia; 0,8: yksittäisiä; 0,3: useita; 0,1: alue laajalti"]
["Kuvio (ID)","Rivi #","Kuvion pinta-ala ha","Latvuspeittävyys","Puuston rakenne","Kasvillisuus","Kasvillisuuden kerroksellisuus","Lahopuun määrä","Haitalliset vieraskasvilajit","Lisätietoja","Ekologinen tila (keskiarvo)"]
[189,{"$f":"ROW()-2","v":1},1.7,1,1,1,0.8,0.3,0.1,"Koivumäen kartanon entinen torppa, itsenäistynyt 1924. Vapaa-ajan käytössä, piha-alue hoidettu. Hyvää (niitty)lajistoa ja edustava puusto, mutta vieraslajeja runsaasti. Raparperi päärakennuksen seinustalla mahdollisesti vanhaa kantaa ulkonäön perusteella (voisi kiinnostaa LUKE:n tutkijoita).",{"$f":"AVERAGE(D3:I3)","v":0.69999999999999984}]

{"sheet":"Ruderaatit","index":1,"n_rows":10,"n_cols":12,"rows_kept":10,"cut":false,"hidden":false,"merged":[]}
["Selitteet:","Rivilaskuri","Pinta-ala","1: neljä piirrettä; 0,7: kolme; 0,6: kaksi; 0,4: yksi; 0,1: ei","1: kolme piirrettä; 0,6: kaksi; 0,4: yksi; 0,1: ei","1: pilaantumatonta, ei roskaa; 0,5: kunnostettu/hallinnassa; 0,1: selvästi pilaantunut/erittäin roskaantunut","1: ei haitallisia; 0,8: yksittäisiä; 0,3: useita; 0,1: alue laajalti"]
["Kuvio (ID)","Rivi #","Kuvion pinta-ala ha","Rakennepiirteet","Kasvillisuus","Maaperän pilaantuneisuus / roskaantuneisuus","Haitalliset vieraskasvilajit","Lisätietoja","Ekologinen tila (keskiarvo)"]
[29,{"$f":"ROW()-2","v":1},0.2,0.8,0.7,1,0.9,"tuoretta maansiirtoa, hulevesijärjestelyä ja vallia teollisuustontin ympärillä (ei voi olla varmuutta pima-asioista)  ",{"$f":"AVERAGE(D3:G3)","v":0.85}]
[130,2,15.1,0.7,0.4,0.4,0.1,"Täyttömäki vanhan kaatopaikan päällä, pima-asioista ei tarkempaa tietoa. Avointa, pensaikkoa kehittynyt varsinkin kuvion laitamille missä myös kookkaampaa lehtipuustoa.  Runsaasti haitallisia vieraskasvilajeja: jättiputkia, jättipalsamia, komealupiinia, kurtturuusua, isosorsimoa, japanintatarta, karhunköynnöstä. Rakennelmia, ihmistoimintaa (pieni moottorirata, robottiruohonleikkuri ym.).",{"$f":"AVERAGE(D4:G4)","v":0.4},null,null," "]
[190,3,2.7,0.9,0.5,0.3,0.2,"Epämääräinen varastointi ja maanläjitysalue Kiviharjun S-puolella. Paljon kivirakennusmateriaaleja, muita rakennusmateriaaleja ja sekalaista jätettä. Osa maavalleista jo pensoittunut ja alueen laidat rehevää ruderaattilehtoa. Keskiosa avointa, osin paahteista mineraalimaata, ei merkittäviä lajeja. Komealupiini runsas. Mielenkiintoisia tyräruoho, tyrni, harmio, tierasammalta laajalti.",{"$f":"AVERAGE(D5:G5)","v":0.47499999999999998}]
[191,4,13.7,0.7,0.8,0.2,0.1,"Kiviharjun varastointialue, pieniä tontteja, varastokontteja, autonromuja ja kaikenlasta jätettä ja varastorakennelmia. Metsäiset osat erittäin rehevää suurruoholehtoa. Paljon haitallisia vieraslajeja. Kamomillasaunio ja jättihelokki mielenkiintoisia.",{"$f":"AVERAGE(D6:G6)","v":0.45}]
[361,5,2.6,1,0.7,0.9,0.3,"Komealupiiniesiintymiä, W-puolella niittykasvillisuutta ja pensaikkoa, E-puolella mm. silmäruohoja ja paljasta mineraalimaata eri raeko´oissa.",0.72499999999999998]
[443,6,0.4,0.5,0.5,0.7,1,"Sora/sepeli/hiekkakenttä, hiljalleen käynnistymässä kasvillisuuden invaasio. Ei tietoa maa-ainesten mahdollisesta pilaantuneisuudesta. Hieman roskaa. Ollut jonkinlainen varastoalue? Rakennukset ja aita poistettu hiljan.",0.67500000000000004,null,null," "]
[462,7,1.3,0.5,0.8,0.6,0.7,"Maa-aineksen pilaantuneisuudesta ei tietoa.",0.64999999999999991]
[null,null,{"$f":"SUM(C3:C9)","v":35.999999999999993}]

{"sheet":"Uusniityt","index":2,"n_rows":8,"n_cols":10,"rows_kept":8,"cut":false,"hidden":false,"merged":[]}
["Selitteet:","Rivilaskuri",null,"1: 4–5 piirrettä; 0,7: 3; 0,5: 2; 0,4: 1; 0,1: ei","1: ≥2 piirrettä; 0,8: 1; 0,1: ei","1: 4 + merkittävä lajisto; 0,9: 4 ilman merkittävyyttä; 0,8: 3; 0,6: 2; 0,4: 1; 0,1: ei","1: 4 piirrettä; 0,7: 3; 0,5: 2; 0,2: 1; 0,1: ei","1: ei; 0,8: yksittäisiä; 0,3: useita; 0,1: alue laajalti"]
["Kuvio (ID)","Rivi #","Kuvion pinta-ala ha","Kuivan uusniityn rakennepiirteet","Kostean/tuoreen uusniityn rakennepiirteet","Kasvillisuus ja huomionarvoinen lajisto","Puuston rakennepiirteet – vain puustoisilla","Haitalliset vieraskasvilajit","Lisätietoja","Ekologinen tila (keskiarvo)"]
[114,{"$f":"ROW()-2","v":1},0.15,0.7,null,1,null,0.6,"Luonnonsuojelualue, ERA Pitkälahti (ketonukki). Puustoa ja taimikkoa raivattu hiljan, pyrkimys pitää avoimena. Kuivaa niittyä ratapenkan jyrkässä rinteessä, avautuu itäkoilliseen, yläosissa paahteisuutta. Huopakeltano, viuhkovoikeltano, sarjakeltano, ahokeltanot, ahomansikka, aho-orvokki, kielo, siankärsämö, puna-ailakki, hopeahanhikki, niittyleinikki, metsälauha, ahopukinjuuri, päivänkakkara, hietakastikka, hiirenvirna, niittynätkelmä, heinätähtimö, niittysuolaheinä, keltakannusruoho, syysmaitiainen, koiranputki, kivikonalvejuuri, nuokkuhelmikkä. Haitallinen vieraslaji paimenmatara, joukossa voi olla myös piennarmataraa. Alaosa tasaisemmalla maalla, vadelmikkoa ja rehevän, tuoreen niityn kasvillisuutta. Punavarpunen (NT). Hieman puu- ja metalliromua. Kuvio ei sovi kunnolla uusniityn, eikä liikenneväylien varren RYTY-kriteeristöön!",{"$f":"AVERAGE(D3:H3)","v":0.76666666666666661}]
[115,2,0.7,null,1,0.9,0.4,0.8,"Tuoreen ja kuivan pienruohoniityn kasvillisuutta ja paljaita maalaikkuja vanhan ratapenkereen länsiluoteeseen aukeavassa jyrkässä rinteessä. Kiviä, kivenkoloja. Hopeahanhikki, kultapiisku, ahomansikka, sarjakeltano, vadelma, pujo, huopavoikeltano, ahopukinjuuri, puna-ailakki, pajujen taimia, haavan taimia. Paimenmataraa, mahd. myös piennarmataraa. Niitetty hiljattain ja raivattu puustoa. Alhaalla oja ja hakkuujätteitä. Sähkölinja kulkee kuviolla Ratapohjan suuntaisesti. Kosteaa ja tuoretta suurruohoniittyä, joka kasvamassa umpeen. Runsaasti haavan taimia ja nuorta haapaa, pihlajaa, rauduskoivua, raitaa, haleppä, vähän kuusia. Muutama vanha raita. Metsäkurjenpolvi, mesiangervo, koiranputki, nurmipuntarpää, maitohorsma, ojakellukka, nokkonen, vadelma, metsäkorte, puna-ailakki, huopaohdake, poimulehdet, karhunputki, punaherukka, koiranheinä. Vain vanhaa ratapenkkaa niitetään? Kuvio ei ole LuTu, eikä RYTY, mutta ihmisvaikutus selkeä ja lähimpänä ehkä uusniittyä, ainakin, mikäli aluetta tarkoitus pitää jatkossa avoimena.",{"$f":"AVERAGE(E4:H4)","v":0.77499999999999991}]
[117,3,0.3,null,0.8,0.9,0.4,0.8,"Ei pebi, eikä kylvetty uusniitty, syntynyt vanhalle pellolle, ei tietoa mahdollisesta hoitosuunnitelmasta. Peurankelloa, mutta onko kuitenkaan merkittävä huomionarvoiselle lajistolle? Hieman paimenmataraa, yksi lupiini (joka poistettiin maastokartoituksen yhteydessä). Tielle nousevilla luiskilla paljasta maata, sekä haaparyhmä ja puiden taimia.",{"$f":"AVERAGE(E5:H5)","v":0.72500000000000009}]
[118,4,0.8,null,0.6,0.9,0.2,0.7,"Ei pebi, eikä kylvetty uusniitty, syntynyt vanhalle pellolle, ei tietoa mahdollisesta hoitosuunnitelmasta. Umpeenkasvu jo pitkällä. Rehevän suurruohoniityn kasvillisuus + joitain viljelykasveja (karviainen, herukat) ja runsaasti nuorta puustoa.",{"$f":"AVERAGE(E6:H6)","v":0.6}]
[251,5,0.6,null,0.2,0.9,0.2,0.1,"EI LuTu, eikä Ryty. Entiselle jonkinlaiselle varastoalueelle syntynyt metsittyvä niittymäinen aukea, aiemmin ollut peltoa. Jonkin verran puustoa, lehtomaisuutta. Osin hyvää niittylajistoa ja rehevän lehdon lajistoa, mutta myös runsaasti haitallsia vieraslajeja: jättiputkea, komealupiinia, kurtturuusua ja paimenmataraa.",0.35000000000000003]
[null,null,{"$f":"SUM(C3:C7)","v":2.5499999999999998}]

{"sheet":"Liikenneväylien varsien kasv.","index":3,"n_rows":6,"n_cols":9,"rows_kept":6,"cut":false,"hidden":false,"merged":[]}
["Selitteet:","Rivilaskuri",null,"1: ei umpeenkasvua; 0,7: paikoin; 0,3: voimakasta; 0,1: täysin umpeenkasvanut","1: kolme piirrettä; 0,7: kaksi; 0,5: yksi; 0,1: ei","1: runsaasti (~20 m³); 0,7: toista runsaasti, toista vähän; 0,5: vähän; 0,1: ei mitään","1: ei; 0,8: yksittäisiä; 0,3: useita; 0,1: alue laajalti"]
["Kuvio (ID)","Rivi #","Kuvion koko ha","Avoimuus / Umpeenkasvaneisuus","Kasvillisuus","Lahopuut ja kivikot","Haitalliset vieraskasvilajit","Lisätietoja","Ekologinen tila (keskiarvo)"]
[116,{"$f":"ROW()-2","v":1},0.4,0.4,0.7,0.7,0.6,"Potentiaalisia kasvupaikkoja kuivien ja tuoreiden niittyjen lajistolle, hieman paahdeympäristöä. Komealupiini uhkaa, sitä niitetty pois. Hopeahanhikki, niittynätkelmä, hiirenvirna, harakankello, viuhkovoikeltano, päivänkakkara, heinätähtimö, siankärsämö, pietaryrtti, puna-apila, ketohärkki, maitohorsma, hietakastikka. Keskellä nuorta lehtipuustoa, umpeenkasvua laajalti. Kivikkoa melko hyvin.",{"$f":"AVERAGE(C3:G3)","v":0.56000000000000005}]
[120,2,6.4,0.5,0.5,0.3,0.7,"Radanvarren kasvillisuuus. Rata kulkee paikoin ympäristöään korkeammall ja paikoin syvässä kuilussa kallioleikkausten välissä. Osin aidattu.  Laaja, vaihteleva kuvio.",{"$f":"AVERAGE(D4:G4)","v":0.5}]
[257,3,0.5,0.7,1,0.1,0.9,"Karttulantien niitetty piennar. Hyvää niittylajistoa, vähän paimen/piennarmataraa. Ei vielä komealupiinia, vaikka väijyy lähistöllä. Hyvää niiittylajistoa myös kuviolta etelään Korvaharjun tien varressa.",{"$f":"AVERAGE(D5:G5)","v":0.67500000000000004}]
[null,null,{"$f":"SUM(C3:C5)","v":7.3000000000000007}]

{"sheet":"Pellot ja avoimet","index":4,"n_rows":5,"n_cols":10,"rows_kept":5,"cut":false,"hidden":false,"merged":[]}
["Selitteet:","Rivilaskuri",null,"Rivilaskuri","1: 5–6 piirrettä; 0,8: neljä; 0,6: kolme; 0,4: kaksi; 0,2: yksi; 0,1: ei","1: monipuolinen/monivuotinen; 0,7: maisemapelto; 0,1: tuulipölytteiset yksilajisesti","1: luomu; 0,1: ei luomu; 0,5: suunnitteilla/laidun ilman lisälannoitusta","1: ei; 0,8: yksittäisiä; 0,3: useita; 0,1: alue laajalti"]
["Kuvio (ID)","Rivi #","Kuvion koko ha","Rivi #","Rakennepiirteet","Kasvillisuuden monilajisuus","Luonnonmukainen viljely ja lannoitus","Haitalliset vieraskasvilajit","Lisätietoja","Ekologinen tila (keskiarvo)"]
[127,{"$f":"ROW()-2","v":1},3.3,{"$f":"ROW()-2","v":1},0.8,0.9,null,1,"Hevosia. Ei tietoa luomu-tilanteesta, lainnoituksesta, viljelystä. Hyvää tuoreen ja kostean niityn lajistoa, metsänreunan pellonpientareilla myös hyvää lajistoa. Harvinainen tulokaslaji idännukki kukki pellon eteläreunalla. Korpelan pihapiirissä komealupiinia, ei vielä levinnyt pellolle.",{"$f":"AVERAGE(E3:H3)","v":0.9}]
[185,2,0.4,2,0.6,0.7,null,1,"Rehuheinää koetetaan kasvattaa, ei tietoa luomusta, lannoituksesta. Huonosti lähtenyt kasvuun, pelto muistuttaa enemmän monilajista niittyä. Tuoksusimaketta ja päivänkakkaraa pientareella.",{"$f":"AVERAGE(E4:H4)","v":0.76666666666666661}]
[null,null,{"$f":"SUM(C3:C4)","v":3.6999999999999997}]

{"sheet":"Pensaikot","index":5,"n_rows":3,"n_cols":11,"rows_kept":3,"cut":false,"hidden":false,"merged":[]}
["Selitteet:","Rivilaskuri",null,"1: 30–70%; 0,5: >70%; 0,1: —","1: eri-ikäistä, osin vanhaa; 0,6: vanhaa yhdestä lajista TAI nuorta monilajista; 0,1: intensiivisesti hoidettu yhden lajin nuoret","1: 4 piirrettä; 0,6: 2; 0,4: 1; 0,1: ei","1: monikerros (≥3); 0,6: 2; 0,1: 1","1: runsaasti (ei korjattu); 0,6: on mutta korjattu; 0,1: ei","1: ei; 0,8: yksittäisiä; 0,3: useita; 0,1: alue laajalti"]
["Kuvio (ID)","Rivi #","Kuvion koko ha","Pensaston peittävyys","Puuvartisen kasvillisuuden rakenne","Kasvillisuus","Kasvillisuuden kerroksellisuus","Lahopuun määrä","Haitalliset vieraskasvilajit","Lisätietoja","Ekologinen tila (keskiarvo)"]
[32,{"$f":"ROW()-2","v":1},0.4,1,0.4,0.7,0.3,0.8,1,"Teollisuustontin ympärillä olevaa, pääasiassa kaivetun maan kasauksen ja vallin peittävää pensaikkoa; vadelmaa ja pajuja, pieni suokasvillisuuslaikku",{"$f":"AVERAGE(F3:I3)","v":0.7}]

{"sheet":"Ihmisen perust. kosteikot","index":6,"n_rows":7,"n_cols":11,"rows_kept":7,"cut":false,"hidden":false,"merged":[]}
["Selitteet:","Rivilaskuri","Pinta-ala","1: runsaasti suojaavaa kasvillisuutta; 0,5: jonkin verran; 0,1: lähes ei","1: kaikki 4 piirrettä; 0,8: 3; 0,6: 2; 0,4: 1; 0,1: ei","1: vettä ympäri vuoden; 0,5: kuivuu joina­kin viikkoina; 0,1: vettä vain hetkittäin","1: vähän kuormitusta ja paljon läpäisevää; 0,1: voimakkaita kuormituslähteitä, vähän läpäisevää","1: luonnollinen maalaji; 0,5: osin suodatinkangas tms.; 0,1: koko pohja keinotekoinen","1: ei; 0,8: yksittäisiä; 0,3: useita; 0,1: alue laajalti"]
["Kuvio (ID)","Rivi #","Kuvion pinta-ala ha","Lähiympäristön tila","Vesi- ja rantakasvillisuus","Veden pysyvyys","Valuma-alue","Pohjan rakenne","Haitalliset vieraskasvilajit","Lisätietoja","Ekologinen tila (keskiarvo)"]
[44,{"$f":"ROW()-2","v":1},0.02,0.1,0.6,0.5,0.3,0.8,0.9,"Ison ja tuoreen teollisuustonttia ympäröivän hulevesikaivuu-uoman pohjalle muodostunut pieni kosteikko; osmankäämiä ja kelluslehtisiä",{"$f":"AVERAGE(D3:I3)","v":0.53333333333333333}]
[131,2,0.2,0.7,0.5,1,0.1,0.6,0.8,"Vanhan kaatopaikan täyttömäen ja louhoksen väliin muodostunut kosteikko. Veden laatu todennäköisesti erittäin heikko kuormituslähteiden vuoksi, pohjan laadusta ei tietoa. Jonkin verran lahopuuta (pystyyn kuolleet puut). Vehka runsas, suursaroja  (ilm. pullo- & pitkäpääsaraa), jättipalsamia ei kuviolla juurikaan, vaikka ympäristössä runsas",{"$f":"AVERAGE(D4:I4)","v":0.6166666666666667}]
[133,3,0.8,1,0.4,1,0.1,0.5,1,"Pohjan rakenteesta ei tietoa, vanha jäteallas, maavallipatoja näkyvissä maastossa, ei muita huomattavia keinotekoisia rakenteita näkyvillä. Veden laatu todennäköisesti huono. Vehka runsas, osmankäämiä, suursaroja.",0.66666666666666663]
[423,4,0.6,0.9,0.7,1,0.6,1,1,"Rakenteilla olevan laajan alueen kupeeseen perustettu hulevesialtaista koostuva kosteikko. Pohja todennäköisesti luonnollista maalajia (hiekkaa) ilman suodatinkankaita tms., mutta tästä ei varmuutta. Juuri perustettu, kasvillisuus vasta kehittymässä. Alimmassa altaassa jo kapeaosmankäämiä ja uistinvitaa, rannan hiekkaluiskalla mm. nurmikohokkia ja maitohorsmaa. Kosteikko on sivuojan kautta yhteydessä viereiseen metsäalueeseen.",0.8666666666666667]
[null,null,{"$f":"SUM(C3:C6)","v":1.62}]

{"sheet":"Rakennetut vesialtaat","index":7,"n_rows":3,"n_cols":9,"rows_kept":3,"cut":false,"hidden":false,"merged":[]}
["Selitteet:","Rivilaskuri","Pinta-ala","1: runsaasti suojaavaa kasvillisuutta; 0,5: jonkin verran; 0,1: ei","1: molemmat piirteet; 0,7: 2 piirrettä; 0,1: ei kumpaakaan","1: ympäri vuoden; 0,5: kuivuu joina­kin viikkoina; 0,1: vettä vain hetkittäin","1: ei; 0,8: yksittäisiä; 0,3: useita; 0,1: alue laajalti"]
["Kuvio (ID)","Rivi #",null,"Lähiympäristön tila","Vesi- ja rantakasvillisuus","Veden pysyvyys","Haitalliset vieraskasvilajit","Lisätietoja","Ekologinen tila (keskiarvo)"]
[464,{"$f":"ROW()-2","v":1},1.7,0.4,0.1,1,0.7,"Kaatopaikalla sijaitseva jonkinlainen jäteveden puhdistusallas(?). Ei vesi-, eikä rantakasveja näkyvissä rannan pajuja lukuun ottamatta. Veden laadusta ei tietoa, eikä altaan pohjamateriaalista. Altaan ympärillä normaalia joutomaan kasvillisuutta.",{"$f":"AVERAGE(D3:G3)","v":0.55000000000000004}]

{"sheet":"Teoll. viherympäristöt","index":8,"n_rows":12,"n_cols":10,"rows_kept":12,"cut":false,"hidden":false,"merged":[]}
["Selitteet:","Rivilaskuri",null,"1: soraa/hiekkaa/kalkkipit.; 0,5: muuta kiviainesta; 0,1: savea/tuhkaa/kuonaa","1: 3 piirrettä; 0,7: 2; 0,5: 1; 0,1: ei","1: ajoittaisia; 0,1: ympärivuorokautisia ja jatkuvia","1: tarjoaa lisääntymis-/elinympäristöä; 0,1: ei tarjoa","1: ei; 0,8: yksittäisiä; 0,3: useita; 0,1: alue laajalti"]
["Kuvio (ID)","Rivi #","Pinta-ala ha","Maa-aineksen laatu","Kasvillisuus","Häiriöiden yleisyys","Pesä- ja elinpaikat","Haitalliset vieraskasvilajit","Lisätietoja","Ekologinen tila (keskiarvo)"]
[252,{"$f":"ROW()-2","v":1},0.6,0.6,0.3,0.3,0.1,1,null,{"$f":"AVERAGE(D3:H3)","v":0.45999999999999996}]
[344,2,6.9,0.5,0.6,0.5,0.2,0.8,"Aurinkovoimalan luona hyvää niittylajistoa.",{"$f":"AVERAGE(D4:H4)","v":0.52}]
[359,3,16.8,0.6,0.6,0.3,0.1,0.8,"Louhoksen W-reunalla pieni esiintymä ketotuulenlentoa.",0.48000000000000009]
[360,4,21.6,0.7,0.5,0.6,0.2,0.3,null,0.45999999999999996]
[362,5,2.8,0.7,0.3,0.2,0.1,1,null,0.45999999999999996]
[363,6,38.1,0.8,0.6,0.7,0.2,0.4,null,0.53999999999999992]
[364,7,14.4,1,0.6,0.4,0.3,0.9,"Jatkuvasti muuttuva ja laajentuva alue, muutoksia tapahtui melko paljon maastokartoitusjaksojen välillä kesä-elokuussa. Hyviä hiekkaisia luiskia ja penkereitä. Länsipuolella pieni vastaperustettu hulevesikosteikko (423). Kaatopaikantien reunamilla hieman komealupiinia.",0.6399999999999999]
[463,8,27.4,0.3,0.6,0.2,0.1,0.6,"Jätekukon kaatopaikka-alue. Suuri osa pinnasta asfalttia ja rakennuksia, mutta myös erilaisia jätemaakasoja, joutomaalänttejä ja maaperästä eristettyjä avonaisia jätteiden varastointialueita ja muita maa-aineskasoja. Runsaasti lokkeja ja korppeja. On mahdollista, että lokit voisivat pesiä jonkin rakennuksen katolla tai rakenteissa.",0.36]
[465,9,14.4,0.3,0.6,1,0.1,0.4,"Täyttömäki, sis. jätteitä, joista ei tarkempaa tietoa ja joka verhoiltu maa-aineksella. Typpilajiston ja vieraslajien peittämä alue (nokkonen, pelto-ohdake, kyläkarhiainen, jättipalsami, komealupiini, karhunköynnös, hierakat, seittitakiainen ). Jonkin verran liikennettä huipulle. Jätteet osin näkyvissä.",0.48]
[null,null,{"$f":"SUM(C3:C11)","v":143.00000000000003}]

{"sheet":"SELITE KESKIARVO","index":9,"n_rows":1,"n_cols":1,"rows_kept":1,"cut":false,"hidden":false,"merged":[]}
["RYTY-kuvioiden ekologinen tila laskettiin mittareiden tilaluokkien keskiarvona kuten julkaisussa Puolitaival et al 2025 JYVÄSKYLÄN YLIOPISTON KAMPUS\u0002ALUEIDEN EKOLOGINEN TILA JA LUONNONARVOHEHTAARIT 2025."]

{"sheet":"_valinnat","index":10,"n_rows":11,"n_cols":1,"rows_kept":11,"cut":false,"hidden":true,"merged":[]}
["1"]
["0,9"]
["0,8"]
["0,7"]
["0,6"]
["0,5"]
["0,4"]
["0,3"]
["0,2"]
["0,1"]
["0"]